bitfinex/quotes_ETHUSD_20250422
["timestamp","ask_amount","ask_price","bid_price","bid_amount"]
[1745323739400,0.74544279,1627.7,1627.4,6.67927733]
[1745323740213,0.74544279,1627.7,1627.5,0.18222338]
[1745323741717,6.96688218,1627.9,1627.5,0.18222338]
[1745323741881,6.96680512,1627.9,1627.5,3.95285482]
[1745323742210,6.96680512,1627.9,1627.5,10.09720234]
[1745323742515,0.7984,1628.0,1627.6,6.97167021]
[1745323742724,0.7984,1628.2,1627.8,6.97093345]
[1745323742884,6.14157916,1628.3,1627.8,13.38508994]
[1745323743080,7.63613002,1628.4,1627.9,6.32962658]
[1745323743308,7.63613002,1628.4,1628.0,0.8278]
[1745323743506,7.63613002,1628.4,1628.0,6.97014721]
[1745323743816,7.63613002,1628.4,1628.1,0.19317982]
[1745323744179,1.49487973,1628.4,1628.1,0.19317982]
[1745323744377,0.69647973,1628.4,1628.1,0.19317982]
[1745323744717,6.83762247,1628.4,1628.1,0.19317982]
[1745323746417,6.83762247,1628.4,1628.1,0.64322675]
[1745323746711,6.83762247,1628.4,1628.1,0.19317982]
[1745323747008,0.69647973,1628.4,1628.1,0.19317982]
[1745323747213,6.83761585,1628.4,1628.1,0.19317982]
[1745323749507,6.83753,1628.4,1628.1,0.19317982]
[1745323749682,6.83748226,1628.4,1628.1,0.19317982]
[1745323749887,6.83747717,1628.4,1628.1,0.19317982]
[1745323750198,0.69647973,1628.4,1628.1,0.19317982]
[1745323750392,6.93885448,1628.6,1628.1,6.33529456]
[1745323750603,6.93885448,1628.6,1628.2,0.7858]
[1745323750780,6.93885448,1628.6,1628.3,0.19025972]
[1745323751589,13.07936264,1628.6,1628.3,0.19025972]
[1745323752022,6.93885448,1628.6,1628.3,0.19025972]
[1745323752228,8.24674957,1628.6,1628.3,0.19025972]
[1745323752725,6.14074085,1628.5,1628.3,0.19025972]
[1745323753500,8.24674957,1628.6,1628.3,0.19025972]
[1745323753685,14.38729121,1628.6,1628.3,0.19025972]
[1745323753888,6.14064196,1628.5,1628.3,0.19025972]
[1745323754113,7.57938111,1628.5,1628.3,0.19025972]
[1745323757325,12.28019798,1628.7,1628.3,0.19025972]
[1745323757624,6.14027157,1628.6,1628.3,0.19025972]
[1745323757794,6.14026397,1628.6,1628.3,0.19025972]
[1745323758092,12.28027259,1628.7,1628.3,0.19025972]
[1745323758623,6.1402879,1628.6,1628.3,0.19025972]
[1745323758826,7.36831989,1628.6,1628.3,0.19025972]
[1745323759614,1.22803199,1628.6,1628.4,0.7858]
[1745323759817,7.2210522,1628.8,1628.5,0.18545497]
[1745323760926,6.13990079,1628.7,1628.5,0.18545497]
[1745323766570,12.28007903,1628.7,1628.5,0.18545497]
[1745323766835,6.13990079,1628.7,1628.5,0.18545497]
[1745323767036,7.47600573,1628.7,1628.5,0.18545497]
[1745323768241,1.33610494,1628.7,1628.5,0.18545497]
[1745323768617,7.47598115,1628.7,1628.5,0.18545497]
[1745323768820,1.33610494,1628.7,1628.5,0.18545497]
[1745323769542,7.22096237,1628.8,1628.5,0.18545497]
[1745323769749,6.90073161,1628.8,1628.5,0.18545497]
[1745323769914,0.3201832,1628.7,1628.5,0.18545497]
[1745323770310,6.46006747,1628.7,1628.5,0.18545497]
[1745323770545,0.3201832,1628.7,1628.5,0.18545497]
[1745323771849,0.3201832,1628.7,1628.6,0.8317]
[1745323772158,0.3201832,1628.7,1628.6,7.15262928]
[1745323772319,6.13860712,1629.1,1628.6,12.48662928]
[1745323772526,12.27724303,1629.1,1628.6,12.48662928]
[1745323773057,12.27724303,1629.1,1628.6,12.93621892]
[1745323774169,12.27724303,1629.1,1628.7,0.8317]
[1745323774170,6.13860712,1629.1,1628.7,0.8317]
[1745323774446,6.13860712,1629.1,1628.8,0.17740981]
[1745323775143,12.2764534,1629.2,1628.8,0.17740981]
[1745323775447,1.22764534,1629.1,1628.8,0.17740981]
[1745323775644,12.27651968,1629.2,1628.8,0.17740981]
[1745323775825,6.13836958,1629.1,1628.8,0.17740981]
[1745323776762,6.13819826,1629.2,1628.8,0.17740981]
[1745323777263,6.13838217,1629.1,1628.8,0.17740981]
[1745323781557,6.13819826,1629.2,1628.9,0.8237]
[1745323781758,13.5806606,1629.2,1628.9,0.8237]
[1745323781966,13.5806606,1629.2,1629.0,0.17354939]
[1745323782258,7.4424072,1629.2,1629.0,0.17354939]
[1745323782479,6.13784553,1629.3,1629.0,0.17354939]
[1745323782663,6.13745958,1629.4,1629.0,0.17354939]
[1745323782837,6.13745958,1629.4,1629.1,0.8237]
[1745323783026,6.45712318,1629.5,1629.2,0.17212991]
[1745323783225,6.13734064,1629.4,1629.1,4.59433144]
[1745323783433,7.39678702,1629.4,1629.2,0.17063731]
[1745323783649,7.39678702,1629.4,1629.1,0.8237]
[1745323783855,7.39678702,1629.4,1629.2,0.17048542]
[1745323784064,6.1376051,1629.3,1629.1,0.8237]
[1745323784239,6.1376051,1629.3,1629.1,0.46683264]
[1745323784447,7.57152431,1629.3,1629.2,0.17067528]
[1745323784643,7.57152431,1629.3,1629.0,6.1567]
[1745323784842,1.43391921,1629.3,1629.1,0.16988008]
[1745323785162,6.13696572,1629.5,1629.2,0.8237]
[1745323785669,6.13696572,1629.5,1629.3,0.16898874]
[1745323786447,6.13723027,1629.4,1629.3,0.16898874]
[1745323788671,5.333,1629.8,1629.3,0.16898874]
[1745323788672,0.32009082,1629.9,1629.5,0.8237]
[1745323788883,0.8048,1630.6,1629.9,0.8237]
[1745323789109,0.32001016,1630.3,1629.9,0.8237]
[1745323789387,0.8048,1630.3,1630.0,0.16282227]
[1745323789588,6.45389994,1630.3,1630.0,0.16282227]
[1745323789757,0.64538999,1630.2,1630.0,0.16282227]
[1745323790703,6.45396424,1630.3,1630.0,0.16282227]
[1745323792277,6.13426053,1630.2,1630.0,0.16282227]
[1745323793188,6.13459296,1630.1,1630.0,0.16282227]
[1745323793381,6.13426053,1630.2,1630.0,0.16282227]
[1745323794081,6.45393435,1630.3,1630.0,0.16282227]
[1745323794082,12.58810224,1630.3,1630.0,0.16282227]
[1745323794257,1.25881022,1630.2,1630.0,0.16282227]
[1745323795349,7.39305473,1630.2,1630.1,0.14058703]
[1745323795553,7.39305473,1630.2,1629.9,9.47605371]
[1745323795853,7.39305473,1630.2,1630.0,0.14083142]
[1745323796887,13.52763165,1630.2,1630.0,0.59211475]
[1745323797094,8.19785473,1630.2,1630.0,0.14083142]
[1745323797283,0.81978547,1630.1,1630.0,0.14083142]
[1745323799177,8.19785473,1630.2,1630.0,0.14083142]
[1745323799490,2.06361022,1630.2,1630.0,0.14083142]
[1745323799691,8.19782898,1630.2,1630.0,0.14083142]
[1745323800561,2.06361022,1630.2,1630.0,0.14083142]
[1745323800759,6.93842362,1630.4,1630.1,3.77063144]
[1745323800995,6.93842362,1630.4,1630.2,0.13364789]
[1745323801192,6.13387838,1630.3,1630.2,0.13364789]
[1745323801693,13.07219341,1630.4,1630.2,0.13364789]
[1745323801898,1.30721934,1630.3,1630.2,0.13364789]
[1745323802289,7.44116899,1630.3,1630.0,0.46231491]
[1745323802524,7.44116899,1630.3,1630.2,0.13348131]
[1745323802671,0.8048,1630.5,1630.1,3.90431909]
[1745323802873,6.93812855,1630.5,1630.1,3.90431909]
[1745323803074,6.13360569,1630.4,1630.1,5.46068765]
[1745323803302,12.2673451,1630.4,1630.1,0.13368765]
[1745323803486,13.57455961,1630.4,1630.1,0.13368765]
[1745323803686,7.4408202,1630.4,1630.1,0.13368765]
[1745323804570,7.4408202,1630.4,1630.2,0.8237]
[1745323804774,1.30721451,1630.4,1630.3,0.13382588]
[1745323805608,6.13329918,1630.5,1630.3,0.13382588]
[1745323807273,6.1329162,1630.6,1630.3,0.13382588]
[1745323807475,12.26599473,1630.6,1630.3,0.13382588]
[1745323807691,6.13313076,1630.5,1630.3,0.13382588]
[1745323808018,6.45300194,1630.5,1630.3,0.13382588]
[1745323808371,13.84499986,1630.5,1630.3,0.13382588]
[1745323808595,13.84493319,1630.5,1630.3,0.13382588]
[1745323808824,7.71159375,1630.5,1630.3,0.13382588]
[1745323809284,7.39172257,1630.5,1630.3,0.13382588]
[1745323810706,6.13291842,1630.6,1630.3,0.13382588]
[1745323810707,13.34335356,1630.9,1630.4,12.20956248]
[1745323810906,6.13214752,1630.8,1630.5,3.77063144]
[1745323811208,6.13257224,1630.7,1630.5,0.58759416]
[1745323812407,6.1321075,1630.8,1630.5,0.58759416]
[1745323812607,7.35849961,1630.8,1630.5,0.58759416]
[1745323813610,1.22639211,1630.8,1630.5,0.58759416]
[1745323813831,6.94315147,1631.0,1630.5,10.4913114]
[1745323814123,6.13102085,1631.1,1630.7,3.77063144]
[1745323814486,12.26217159,1631.1,1630.8,0.87064921]
[1745323814784,6.13029934,1631.3,1630.9,3.77063144]
[1745323814989,6.13029934,1631.3,1631.0,0.12011283]
[1745323815204,0.61302993,1631.2,1631.0,0.12011283]
[1745323815401,7.26131608,1631.4,1631.1,0.7502]
[1745323815603,12.57958368,1631.4,1631.2,0.11827757]
[1745323815821,0.3197411,1631.4,1631.1,4.52083144]
[1745323815994,0.3197411,1631.4,1631.2,0.11805039]
[1745323816189,0.3197411,1631.4,1631.2,5.324]
[1745323816400,0.3197411,1631.4,1631.3,0.11474401]
[1745323816924,0.3197411,1631.4,1631.3,4.63557545]
[1745323817253,6.12942234,1631.5,1631.3,4.52083144]
[1745323817390,6.12942234,1631.5,1631.3,6.0742]
[1745323817592,12.25901936,1631.5,1631.3,6.0742]
[1745323817929,6.12942234,1631.5,1631.3,6.0742]
[1745323818219,6.13000631,1631.4,1631.2,5.324]
[1745323818426,6.13010329,1631.3,1631.2,5.324]
[1745323818722,6.13000631,1631.4,1631.2,5.324]
[1745323818925,6.1300803,1631.3,1631.1,1.21564182]
[1745323819229,6.1304561,1631.2,1631.1,1.21564182]
[1745323819393,1.22605364,1631.2,1631.1,0.46544182]
[1745323819592,6.13158378,1630.9,1630.8,6.0742]
[1745323819821,6.13219386,1630.8,1630.6,0.7502]
[1745323819996,6.13178554,1630.9,1630.7,5.324]
[1745323821026,12.26370708,1630.9,1630.6,0.7502]
[1745323821211,6.13196956,1630.8,1630.6,6.0742]
[1745323821622,6.13178554,1630.9,1630.6,6.0742]
[1745323821794,12.26372659,1630.9,1630.6,6.0742]
[1745323821992,6.13140275,1631.0,1630.6,6.0742]
[1745323822195,6.13166006,1630.9,1630.6,6.0742]
[1745323822719,12.87610292,1631.0,1630.6,6.0742]
[1745323822905,12.87601799,1631.0,1630.6,6.0742]
[1745323823107,12.876037,1631.0,1630.6,6.0742]
[1745323823308,12.876037,1631.0,1630.6,6.536262]
[1745323823528,12.87602714,1631.0,1630.6,6.536262]
[1745323823730,6.13105257,1631.1,1630.6,13.59570295]
[1745323823896,12.26215523,1631.1,1630.6,19.72827595]
[1745323824097,6.13126377,1631.0,1630.6,13.59570295]
[1745323824331,6.13169849,1630.9,1630.6,10.30689344]
[1745323824532,6.13126377,1631.0,1630.6,10.30689344]
[1745323824721,12.26275828,1631.0,1630.6,10.30689344]
[1745323824922,6.13161266,1630.9,1630.6,10.30689344]
[1745323825614,12.26280605,1631.0,1630.6,10.30689344]
[1745323825820,6.13126377,1631.0,1630.6,10.30689344]
[1745323826005,12.87592922,1631.0,1630.6,10.30689344]
[1745323826349,6.13161529,1630.9,1630.6,10.30689344]
[1745323826546,6.74439015,1631.0,1630.6,10.30689344]
[1745323826707,12.87589131,1631.0,1630.6,10.30689344]
[1745323827034,6.74439015,1631.0,1630.6,10.30689344]
[1745323827338,6.74439015,1631.0,1630.6,16.4395831]
[1745323827642,6.13126377,1631.0,1630.6,16.4395831]
[1745323829732,12.26275302,1631.0,1630.6,10.30689344]
[1745323829905,6.13126377,1631.0,1630.6,10.30689344]
[1745323830238,12.26275683,1631.0,1630.6,10.30689344]
[1745323830440,6.13126377,1631.0,1630.6,10.30689344]
[1745323831005,13.48914943,1631.0,1630.6,6.0742]
[1745323831205,7.35763017,1631.0,1630.6,6.0742]
[1745323831405,13.48913601,1631.0,1630.6,6.53671033]
[1745323831624,13.48913601,1631.0,1630.7,0.40246497]
[1745323831625,7.35763017,1631.0,1630.7,0.40246497]
[1745323831832,7.35763017,1631.0,1630.6,6.53671033]
[1745323832019,7.35763017,1631.0,1630.7,0.40749783]
[1745323832219,13.48916863,1631.0,1630.6,6.53671033]
[1745323832406,6.86744443,1630.9,1630.7,0.40753934]
[1745323832618,6.13195977,1630.8,1630.3,6.1263]
[1745323832817,6.13295014,1630.6,1630.4,0.37410543]
[1745323833019,17.11496173,1630.9,1630.3,6.1263]
[1745323833239,6.13320837,1630.5,1630.4,0.34118618]
[1745323833443,6.13320837,1630.5,1630.3,0.8053]
[1745323833632,6.13320837,1630.5,1630.4,0.34126923]
[1745323833833,7.35981506,1630.5,1630.3,0.8053]
[1745323834043,7.35981506,1630.5,1630.4,0.34126923]
[1745323834243,7.35981506,1630.5,1630.1,6.1263]
[1745323834434,7.35981506,1630.5,1630.2,0.34163736]
[1745323834612,6.13359492,1630.4,1630.2,0.34163736]
[1745323834941,6.74719988,1630.3,1630.2,0.34163736]
[1745323835853,6.13325791,1630.5,1630.2,0.34163736]
[1745323836345,12.26671492,1630.5,1630.2,0.34163736]
[1745323836553,6.13325791,1630.5,1630.2,0.34163736]
[1745323837432,6.13359836,1630.4,1630.2,0.34163736]
[1745323837811,12.26738161,1630.4,1630.2,0.34163736]
[1745323838011,7.44162652,1630.4,1630.2,0.34163736]
[1745323838211,1.30802816,1630.4,1630.2,0.34163736]
[1745323838515,6.13291733,1630.6,1630.2,0.34163736]
[1745323838945,13.02545127,1630.7,1630.3,0.8053]
[1745323839154,6.8929,1630.7,1630.3,0.8053]
[1745323839321,6.08,1630.7,1630.4,0.34665644]
[1745323839834,6.08,1630.7,1630.5,0.34643088]
[1745323840102,6.08,1630.7,1630.4,3.77063144]
[1745323840255,0.7531,1630.9,1630.5,1.16573849]
[1745323840256,6.13170627,1630.9,1630.5,1.16573849]
[1745323840420,6.13215967,1630.8,1630.5,1.16573849]
[1745323841053,12.26440487,1630.8,1630.5,1.16573849]
[1745323841217,6.13271188,1630.6,1630.5,0.34663849]
[1745323841419,1.30181493,1630.6,1630.5,0.34663849]
[1745323841611,6.88543744,1630.7,1630.5,0.34663849]
[1745323841811,6.13271188,1630.6,1630.5,0.34663849]
[1745323842246,6.88543744,1630.7,1630.5,0.34663849]
[1745323843659,31.447396,1634.2,1630.8,0.55]
[1745323843660,0.31979199,1631.2,1630.8,0.55]
[1745323843963,6.4502737,1631.2,1630.9,1.16487911]
[1745323844257,7.70833978,1631.2,1630.9,1.16487911]
[1745323845052,1.57783946,1631.2,1630.9,1.16487911]
[1745323845233,6.1309635,1631.1,1630.9,1.16487911]
[1745323845629,6.45036541,1631.2,1630.9,0.34577911]
[1745323845844,0.31979199,1631.2,1630.9,0.34577911]
[1745323846554,6.45032116,1631.2,1630.9,0.34577911]
[1745323846715,6.13099342,1631.1,1630.9,0.34577911]
[1745323846920,6.85138196,1631.1,1630.9,0.34577911]
[1745323847785,12.98252967,1631.1,1630.9,0.34577911]
[1745323847957,6.13120784,1631.0,1630.9,0.34577911]
[1745323848471,6.13120784,1631.0,1630.7,0.8191]
[1745323848783,6.85143321,1631.1,1630.8,0.34633591]
[1745323848984,0.72038854,1631.1,1630.8,0.34633591]
[1745323849151,6.85141615,1631.1,1630.8,0.34633591]
[1745323850757,0.72038854,1631.1,1630.8,0.34633591]
[1745323850958,6.39979199,1631.2,1630.8,4.11696735]
[1745323851181,6.39979199,1631.2,1630.8,10.24891907]
[1745323851391,6.39979199,1631.2,1630.8,4.11696735]
[1745323852286,6.39979199,1631.2,1630.8,10.31012265]
[1745323852486,0.31979199,1631.2,1631.0,3.77063144]
[1745323852654,6.88295695,1631.4,1631.1,0.34570123]
[1745323852855,8.7162948,1631.4,1631.1,0.34570123]
[1745323853383,1.83333785,1631.4,1631.1,0.34570123]
[1745323853553,6.12934485,1631.5,1631.1,0.34570123]
[1745323853754,6.12934485,1631.5,1631.2,0.8191]
[1745323854187,6.12934485,1631.5,1631.3,0.34111002]
[1745323854387,12.25893958,1631.5,1631.3,0.34111002]
[1745323854757,6.12970454,1631.4,1631.3,0.34111002]
[1745323855091,7.35560948,1631.4,1631.3,0.34111002]
[1745323855465,7.35560948,1631.4,1631.0,4.54583144]
[1745323855667,7.35560948,1631.4,1631.1,0.3415192]
[1745323856503,13.48556956,1631.4,1631.1,0.3415192]
[1745323857199,6.13009903,1631.3,1631.1,0.3415192]
[1745323857403,7.47866988,1631.3,1631.1,0.3415192]
[1745323858501,0.31966817,1631.7,1631.2,0.7752]
[1745323858705,6.12905759,1631.6,1631.3,0.34077805]
[1745323859001,0.8099,1631.5,1631.3,0.34077805]
[1745323859202,6.93924345,1631.5,1631.3,0.34077805]
[1745323859905,6.12934345,1631.5,1631.3,0.34077805]
[1745323860404,6.93895759,1631.6,1631.3,0.34077805]
[1745323860574,6.12956471,1631.5,1631.3,0.34077805]
[1745323860770,6.12970454,1631.4,1631.3,0.34077805]
[1745323860972,6.13011235,1631.3,1631.0,0.7752]
[1745323861177,6.13060208,1631.2,1630.9,5.318]
[1745323861391,6.13060208,1631.2,1630.9,6.0922]
[1745323861772,7.43766352,1631.2,1630.9,6.0922]
[1745323862016,6.13091732,1631.1,1630.9,5.317]
[1745323862205,6.13091732,1631.1,1630.7,9.08763144]
[1745323862513,7.43765492,1631.2,1630.7,15.21980297]
[1745323862514,13.56846534,1631.2,1630.7,15.21980297]
[1745323862726,6.13089824,1631.1,1630.7,9.08763144]
[1745323863137,7.48775356,1631.1,1630.7,9.08763144]
[1745323863493,6.94114018,1631.0,1630.7,5.317]
[1745323864121,8.29765356,1631.1,1630.7,5.317]
[1745323864327,14.42884317,1631.1,1630.7,5.317]
[1745323864522,6.13141765,1631.0,1630.7,5.317]
[1745323864725,6.13167862,1630.9,1630.5,3.77063144]
[1745323864894,6.94157862,1630.9,1630.6,5.318]
[1745323865289,6.96121404,1631.0,1630.6,5.318]
[1745323865489,0.8298173,1631.0,1630.7,0.7752]
[1745323865701,6.9611487,1631.0,1630.7,0.7752]
[1745323866234,0.8298173,1631.0,1630.6,11.90761797]
[1745323866596,6.13062146,1631.2,1630.7,10.67797895]
[1745323867233,6.94088473,1631.1,1630.6,5.77504537]
[1745323867540,6.13135085,1631.0,1630.6,9.54567681]
[1745323868191,6.4510485,1631.0,1630.6,9.54567681]
[1745323868402,6.4510485,1631.0,1630.6,11.9077256]
[1745323868598,6.4510485,1631.0,1630.6,15.67835704]
[1745323868827,0.31969765,1631.0,1630.6,17.93681313]
[1745323869426,6.45096575,1631.0,1630.6,11.80431721]
[1745323869933,6.45096575,1631.0,1630.6,9.54567681]
[1745323870108,6.45096575,1631.0,1630.6,15.67838113]
[1745323870294,0.31969765,1631.0,1630.6,15.67838113]
[1745323871538,6.45092837,1631.0,1630.6,15.67838113]
[1745323871890,6.45092837,1631.0,1630.6,9.54567681]
[1745323872120,1.04578049,1631.0,1630.6,5.77504537]
[1745323872322,6.13185819,1630.9,1630.6,5.77504537]
[1745323873196,0.8221,1630.8,1630.6,0.45704537]
[1745323873409,0.8221,1630.8,1630.5,9.08863144]
[1745323873606,6.95395819,1630.9,1630.5,15.22170173]
[1745323873807,6.95395819,1630.9,1630.5,15.22169361]
[1745323874405,13.08580993,1630.9,1630.5,11.45106217]
[1745323874610,6.13215367,1630.8,1630.5,9.08863144]
[1745323874806,6.13234891,1630.7,1630.5,9.08863144]
[1745323875011,6.13215367,1630.8,1630.5,9.08863144]
[1745323875216,6.13245645,1630.7,1630.5,9.54552107]
[1745323875531,6.13212865,1630.8,1630.6,0.31192125]
[1745323875698,6.9544358,1630.7,1630.6,0.31192125]
[1745323875903,0.8221,1630.7,1630.6,0.31192125]
[1745323876442,7.7877659,1630.8,1630.6,0.31192125]
[1745323877137,6.1323358,1630.7,1630.6,0.31192125]
[1745323878161,7.7877659,1630.8,1630.4,15.8356979]
[1745323878388,6.91111239,1630.7,1630.6,0.30341307]
[1745323878672,6.13360036,1630.4,1630.2,0.8217]
[1745323878970,6.13360036,1630.4,1630.3,0.27807932]
[1745323879450,6.13360036,1630.4,1630.3,0.25459401]
[1745323879646,12.26741737,1630.4,1630.1,6.1397]
[1745323879851,7.4425521,1630.4,1630.2,0.2548196]
[1745323880661,13.57634352,1630.4,1630.2,0.2548196]
[1745323880856,6.95543358,1630.5,1630.2,0.2548196]
[1745323881162,6.13333358,1630.5,1630.2,1.0765196]
[1745323881762,12.26668041,1630.5,1630.2,1.0765196]
[1745323882148,6.1334856,1630.4,1630.2,1.0765196]
[1745323882351,6.1334856,1630.4,1630.2,0.2548196]
[1745323884381,7.18530081,1630.4,1630.2,0.2548196]
[1745323885383,6.1334856,1630.4,1630.2,0.2548196]
[1745323885590,6.13323637,1630.5,1630.2,0.2548196]
[1745323885897,6.13249769,1630.7,1630.4,0.8217]
[1745323886203,6.13249769,1630.7,1630.5,0.25990504]
[1745323887269,6.13271188,1630.6,1630.5,0.25990504]
[1745323888596,7.35923284,1630.6,1630.5,0.25990504]
[1745323889459,6.13346418,1630.4,1630.2,0.8217]
[1745323890473,12.26662862,1630.5,1630.3,0.2603563]
[1745323892489,6.13346418,1630.4,1630.3,0.2603563]
[1745323893413,6.13327627,1630.5,1630.3,0.2603563]
[1745323893707,6.13346418,1630.4,1630.3,0.2603563]
[1745323894518,6.13327627,1630.5,1630.3,0.2603563]
[1745323894689,6.13295508,1630.6,1630.3,4.03098774]
[1745323895572,12.26592638,1630.6,1630.3,4.03098774]
[1745323895775,6.13295508,1630.6,1630.3,4.03098774]
[1745323897016,6.1331014,1630.5,1630.3,4.03098774]
[1745323897421,6.13346418,1630.4,1630.3,0.2603563]
[1745323898023,13.49305707,1630.5,1630.3,0.2603563]
[1745323898596,6.13346418,1630.4,1630.3,0.2603563]
[1745323898996,1.22660565,1630.5,1630.3,0.2603563]
[1745323899198,6.13291315,1630.6,1630.3,4.03098774]
[1745323899395,6.95459623,1630.7,1630.3,10.22612949]
[1745323899617,12.26516182,1630.7,1630.3,10.22612949]
[1745323899818,6.13178985,1630.9,1630.5,9.90368815]
[1745323900223,6.13158378,1630.9,1630.6,5.58195026]
[1745323900386,6.13219601,1630.8,1630.6,5.58195026]
[1745323900587,12.2634466,1630.9,1630.6,5.58195026]
[1745323900828,6.13197073,1630.8,1630.6,5.58195026]
[1745323901728,13.57203151,1630.9,1630.6,5.58195026]
[1745323902027,13.57203151,1630.9,1630.6,6.04777963]
[1745323902814,7.44013844,1630.9,1630.6,6.04777963]
[1745323903022,13.57200167,1630.9,1630.6,6.04777963]
[1745323903923,6.13198426,1630.8,1630.6,6.04777963]
[1745323904126,6.1323358,1630.7,1630.6,0.26295026]
[1745323904627,6.9218358,1630.7,1630.6,0.26295026]
[1745323904989,6.9218358,1630.7,1630.4,5.318]
[1745323905190,6.9218358,1630.7,1630.5,0.25826233]
[1745323905804,8.36296145,1630.7,1630.5,0.25826233]
[1745323906235,13.05446741,1630.7,1630.5,0.25826233]
[1745323907129,6.9218358,1630.7,1630.5,0.25826233]
[1745323907424,13.05446828,1630.7,1630.5,0.25826233]
[1745323907626,6.9218358,1630.7,1630.5,0.25826233]
[1745323908864,13.0544454,1630.7,1630.5,0.25826233]
[1745323910130,13.05448048,1630.7,1630.5,0.25826233]
[1745323910372,6.9218358,1630.7,1630.5,0.25826233]
[1745323910666,6.1323358,1630.7,1630.5,0.25826233]
[1745323913284,7.35878798,1630.7,1630.5,0.25826233]
[1745323914155,13.49144812,1630.7,1630.5,0.25826233]
[1745323914354,7.35878798,1630.7,1630.5,0.25826233]
[1745323914682,6.13271188,1630.6,1630.5,0.25826233]
[1745323914842,7.35878798,1630.7,1630.5,0.25826233]
[1745323915043,13.49138696,1630.7,1630.5,0.25826233]
[1745323916984,7.35878798,1630.7,1630.5,0.25826233]
[1745323917282,7.35878798,1630.7,1630.5,1.06846233]
[1745323917949,6.13271188,1630.6,1630.5,0.25826233]
[1745323918143,7.14836168,1630.6,1630.5,0.25826233]
[1745323919469,6.13271188,1630.6,1630.5,0.25826233]
[1745323920815,8.18808798,1630.7,1630.5,0.25826233]
[1745323921114,14.32072332,1630.7,1630.5,0.25826233]
[1745323921593,8.18808798,1630.7,1630.5,0.25826233]
[1745323922508,14.32073389,1630.7,1630.5,0.25826233]
[1745323922898,8.18808798,1630.7,1630.5,0.25826233]
[1745323923103,6.13271188,1630.6,1630.5,0.25826233]
[1745323923302,7.56479187,1630.6,1630.5,0.25826233]
[1745323923596,13.69787623,1630.6,1630.2,6.1272]
[1745323923785,7.56479187,1630.6,1630.3,0.25988437]
[1745323923985,13.69779972,1630.6,1630.3,0.25988437]
[1745323924163,7.56479187,1630.6,1630.3,0.25988437]
[1745323924363,6.13271188,1630.6,1630.3,0.25988437]
[1745323924566,6.13271188,1630.6,1630.3,4.03051581]
[1745323924765,13.09442663,1630.7,1630.3,4.03051581]
[1745323925096,13.09441521,1630.7,1630.3,4.03051581]
[1745323925304,6.96180884,1630.7,1630.3,10.16421125]
[1745323925494,6.13250884,1630.7,1630.4,0.824]
[1745323925961,6.13250884,1630.7,1630.5,0.26078715]
[1745323926625,12.26513839,1630.7,1630.5,0.26078715]
[1745323927730,6.13250884,1630.7,1630.5,0.26078715]
[1745323928708,12.26521607,1630.7,1630.5,0.26078715]
[1745323930136,6.13250884,1630.7,1630.5,0.26078715]
[1745323930537,12.26516743,1630.7,1630.5,0.26078715]
[1745323933443,6.13271188,1630.6,1630.5,0.26078715]
[1745323936546,12.26511757,1630.7,1630.5,0.26078715]
[1745323936732,13.49162933,1630.7,1630.5,0.26078715]
[1745323936932,6.13271188,1630.6,1630.5,0.26078715]
[1745323937523,6.90231188,1630.6,1630.5,0.26078715]
[1745323937811,6.13271188,1630.6,1630.3,9.08763144]
[1745323938012,6.13271188,1630.6,1630.4,0.26116679]
[1745323938347,6.13271188,1630.6,1630.3,3.77063144]
[1745323938648,6.13271188,1630.6,1630.4,0.26120831]
[1745323939044,6.13271188,1630.6,1630.3,3.77063144]
[1745323939243,6.13271188,1630.6,1630.5,0.26106577]
[1745323939432,6.13271188,1630.6,1630.4,0.26129136]
[1745323939632,6.13271188,1630.6,1630.3,3.77063144]
[1745323939833,6.13271188,1630.6,1630.5,0.26106577]
[1745323940145,6.13271188,1630.6,1630.4,0.26173616]
[1745323940310,6.13271188,1630.6,1630.5,0.26121991]
[1745323940711,6.13271188,1630.6,1630.3,3.77063144]
[1745323940912,6.13271188,1630.6,1630.5,0.26121991]
[1745323941230,6.133088,1630.5,1630.4,0.26144549]
[1745323941935,6.133088,1630.5,1630.2,6.0817]
[1745323942140,6.133088,1630.5,1630.4,0.26140397]
[1745323942323,6.133088,1630.5,1630.3,0.2616711]
[1745323942650,6.133088,1630.5,1630.4,0.26144549]
[1745323943145,13.69183186,1630.6,1630.2,6.0817]
[1745323943352,12.26569861,1630.6,1630.4,0.17980397]
[1745323943516,12.26569861,1630.6,1630.3,0.2548711]
[1745323943713,6.13271188,1630.6,1630.5,0.25441991]
[1745323943914,12.26574354,1630.6,1630.4,0.25464549]
[1745323944219,6.13271188,1630.6,1630.5,0.25441991]
[1745323944420,6.13271188,1630.6,1630.2,12.21589699]
[1745323944619,6.13271188,1630.6,1630.3,1.4764608]
[1745323945341,6.13271188,1630.6,1630.3,0.2548711]
[1745323946855,6.13319552,1630.5,1630.3,0.2548711]
[1745323947014,6.13271188,1630.6,1630.3,0.2548711]
[1745323948263,6.90216467,1630.7,1630.3,0.2548711]
[1745323948264,6.88536418,1630.4,1630.3,0.2548711]
[1745323948476,8.80055518,1630.4,1630.3,0.2548711]
[1745323948773,12.26810282,1630.3,1630.1,0.45526803]
[1745323948924,6.1339704,1630.3,1630.1,0.45526803]
[1745323949124,6.1339704,1630.3,1630.0,0.78]
[1745323949330,6.1339704,1630.3,1630.0,1.24375883]
[1745323949532,6.1339704,1630.3,1630.0,0.46375883]
[1745323949727,6.13459296,1630.1,1629.8,4.55063144]
[1745323950061,6.88613562,1630.2,1629.9,5.317]
[1745323951264,6.88613562,1630.2,1630.0,0.1943712]
[1745323952741,6.13459296,1630.1,1630.0,0.1943712]
[1745323953567,6.88613562,1630.2,1630.0,0.1943712]
[1745323954067,13.02063323,1630.2,1630.0,0.1943712]
[1745323954365,6.13459296,1630.1,1630.0,0.1943712]
[1745323955477,13.01946401,1630.4,1630.0,5.34268565]
[1745323955634,6.13385877,1630.3,1630.0,4.74500264]
[1745323956857,6.88567513,1630.4,1630.0,4.80634555]
[1745323957168,13.01855552,1630.5,1630.0,10.94106554]
[1745323957966,6.13349319,1630.4,1630.0,10.94106554]
[1745323958869,6.88519211,1630.5,1630.1,6.13447939]
[1745323959273,6.1337457,1630.4,1630.2,0.19770689]
[1745323959637,6.1337457,1630.4,1630.0,4.55063144]
[1745323959863,6.1337457,1630.4,1630.1,0.19797409]
[1745323960062,6.13373671,1630.4,1630.1,0.19797409]
[1745323960388,6.1337193,1630.4,1630.1,0.19797409]
[1745323960668,7.56579363,1630.4,1630.1,0.19797409]
[1745323961476,1.43207433,1630.4,1630.1,0.19797409]
[1745323961678,1.43207433,1630.4,1630.1,6.33235467]
[1745323961973,0.7519,1630.5,1630.1,6.33233432]
[1745323962174,12.59065644,1630.7,1630.3,6.13379867]
[1745323962376,18.72324742,1630.7,1630.2,6.94400455]
[1745323962680,18.72330501,1630.7,1630.3,0.19906573]
[1745323963471,6.13272205,1630.6,1630.3,0.19906573]
[1745323963646,8.0050599,1630.6,1630.3,0.19906573]